[Event "Speed Chess Championship 2020"]
[Site "Online"]
[Date "2020.12.03"]
[Round "2.11"]
[White "Nakamura, Hikaru"]
[Black "Fedoseev, Vladimir"]
[Result "1-0"]
[ECO "B09"]
[WhiteElo "2736"]
[BlackElo "2676"]
[Annotator "ChessBase"]
[PlyCount "47"]
[EventDate "2020.10.31"]
[EventType "k.o."]
[EventCountry "NET"]
[SourceTitle "playchess.com"]
[Source "ChessBase"]
[SourceQuality "1"]
[TimeControl "180+1"]

1. d4 {[%emt 0:00:01]} g6 {[%emt 0:00:01]} 2. e4 {[%emt 0:00:00]} Bg7 {[%emt 0:00:00]} 3. Nc3 {[%emt 0:00:01]} d6 {[%emt 0:00:00]} 4. f4 {[%emt 0:00:00]} Nf6 {[%emt 0:00:03]} 5. Nf3 {[%emt 0:00:02]} O-O {[%emt 0:00:00]} 6. Be2 {[%emt 0:00:00]} e5 {[%emt 0:00:02]} 7. dxe5 {[%emt 0:00:13]} dxe5 {[%emt 0:00:01]} 8. Qxd8 {[%emt 0:00:00]} Rxd8 {[%emt 0:00:01]} 9. Nxe5 {[%emt 0:00:01]} Na6 {[%emt 0:00:03]} 10. Nd3 {[%emt 0:00:07]} c5 {[%emt 0:00:06]} 11. a3 {[%emt 0:00:04]} b6 {[%emt 0:00:19]} 12. e5 {[%emt 0:00:04]} Ne8 {[%emt 0:00:02]} 13. Bf3 {[%emt 0:00:02]} Rb8 {[%emt 0:00:03]} 14. Be3 {[%emt 0:00:01]} Nec7 {[%emt 0:00:06]} 15. O-O-O {[%emt 0:00:02]} Bf5 {[%emt 0:00:04]} 16. Nf2 {[%emt 0:00:02]} h5 {[%emt 0:00:02]} 17. Nfe4 {[%emt 0:00:04]} Ne6 {[%emt 0:00:14]} 18. Nd6 {[%emt 0:00:09]} Bg4 {[%emt 0:00:01]} 19. Bxg4 {[%emt 0:00:05]} hxg4 {[%emt 0:00:00]} 20. Ncb5 {[%emt 0:00:01]} Ra8 {[%emt 0:00:13]} 21. g3 {[%emt 0:00:11]} Nac7 {[%emt 0:00:02]} 22. Nc3 {[%emt 0:00:06]} f5 {[%emt 0:00:05]} 23. Rd2 {[%emt 0:00:11]} g5 {[%emt 0:00:06]} 24. Nxf5 {[%emt 0:00:02]} 1-0

[Event "Speed Chess Championship 2020"]
[Site "Online"]
[Date "2020.11.19"]
[Round "2.13"]
[White "So, Wesley"]
[Black "Duda, Jan-Krzysztof"]
[Result "1-0"]
[ECO "D78"]
[WhiteElo "2816"]
[BlackElo "2743"]
[Annotator "ChessBase"]
[PlyCount "91"]
[EventDate "2020.10.31"]
[EventType "k.o."]
[EventCountry "NET"]
[SourceTitle "playchess.com"]
[Source "ChessBase"]
[SourceQuality "1"]
[TimeControl "180+1"]

1. d4 {[%emt 0:00:01]} Nf6 {[%emt 0:00:01]} 2. c4 {[%emt 0:00:00]} g6 {[%emt 0:00:00]} 3. g3 {[%emt 0:00:02]} c6 {[%emt 0:00:02]} 4. Bg2 {[%emt 0:00:01]} d5 {[%emt 0:00:00]} 5. Nf3 {[%emt 0:00:01]} Bg7 {[%emt 0:00:01]} 6. O-O {[%emt 0:00:00]} O-O {[%emt 0:00:00]} 7. Ne5 {[%emt 0:00:00]} Ng4 {[%emt 0:00:02]} 8. cxd5 {[%emt 0:00:06]} Nxe5 {[%emt 0:00:08]} 9. dxe5 {[%emt 0:00:00]} cxd5 {[%emt 0:00:23]} 10. Bxd5 {[%emt 0:00:01]} Bxe5 {[%emt 0:00:06]} 11. Nc3 {[%emt 0:00:03]} Qb6 {[%emt 0:00:20]} 12. Bh6 {[%emt 0:00:15]} Bg7 {[%emt 0:00:15]} 13. Bxg7 {[%emt 0:00:08]} Kxg7 {[%emt 0:00:00]} 14. Rc1 {[%emt 0:00:08]} Rd8 {[%emt 0:00:08]} 15. Na4 {[%emt 0:00:09]} Qb4 {[%emt 0:00:45]} 16. a3 {[%emt 0:00:08]} Qg4 {[%emt 0:00:00]} 17. f3 {[%emt 0:00:53]} Qd7 {[%emt 0:00:17]} 18. Qd4+ {[%emt 0:00:06]} f6 {[%emt 0:00:05]} 19. Rfd1 {[%emt 0:00:17]} e6 {[%emt 0:00:24]} 20. Nc5 {[%emt 0:00:02]} Qf7 {[%emt 0:00:11]} 21. Nxe6+ {[%emt 0:00:19]} Bxe6 {[%emt 0:00:01]} 22. Bxe6 {[%emt 0:00:00]} Rxd4 {[%emt 0:00:01]} 23. Bxf7 {[%emt 0:00:00]} Rxd1+ {[%emt 0:00:00]} 24. Rxd1 {[%emt 0:00:00]} Kxf7 {[%emt 0:00:01]} 25. Rd8 {[%emt 0:00:01]} a5 {[%emt 0:00:01]} 26. h4 {[%emt 0:00:02]} h5 {[%emt 0:00:01]} 27. g4 {[%emt 0:00:01]} a4 {[%emt 0:00:03]} 28. Kf2 {[%emt 0:00:01]} Ke7 {[%emt 0:00:01]} 29. Rg8 {[%emt 0:00:02]} Kf7 {[%emt 0:00:03]} 30. Rh8 {[%emt 0:00:02]} b5 {[%emt 0:00:04]} 31. e4 {[%emt 0:00:06]} Kg7 {[%emt 0:00:03]} 32. Rc8 {[%emt 0:00:01]} Kf7 {[%emt 0:00:01]} 33. g5 {[%emt 0:00:03]} fxg5 {[%emt 0:00:01]} 34. hxg5 {[%emt 0:00:00]} Ke7 {[%emt 0:00:00]} 35. f4 {[%emt 0:00:02]} Kd7 {[%emt 0:00:01]} 36. Rg8 {[%emt 0:00:01]} Kc7 {[%emt 0:00:01]} 37. f5 {[%emt 0:00:13]} gxf5 {[%emt 0:00:00]} 38. exf5 {[%emt 0:00:00]} Ra6 {[%emt 0:00:00]} 39. f6 {[%emt 0:00:02]} Nd7 {[%emt 0:00:03]} 40. f7 {[%emt 0:00:01]} Rd6 {[%emt 0:00:01]} 41. g6 {[%emt 0:00:04]} Rf6+ {[%emt 0:00:01]} 42. Kg3 {[%emt 0:00:02]} Kd6 {[%emt 0:00:02]} 43. Kh4 {[%emt 0:00:02]} Rf5 {[%emt 0:00:01]} 44. Re8 {[%emt 0:00:05]} Rf4+ {[%emt 0:00:03]} 45. Kxh5 {[%emt 0:00:01]} Rf2 {[%emt 0:00:02]} 46. Kh6 {[%emt 0:00:02]} 1-0

[Event "Speed Chess Championship 2020"]
[Site "Online"]
[Date "2020.12.04"]
[Round "2.16"]
[White "Fedoseev, Vladimir"]
[Black "Nakamura, Hikaru"]
[Result "0-1"]
[ECO "C54"]
[WhiteElo "2676"]
[BlackElo "2736"]
[Annotator "ChessBase"]
[PlyCount "86"]
[EventDate "2020.10.31"]
[EventType "k.o."]
[EventCountry "NET"]
[SourceTitle "playchess.com"]
[Source "ChessBase"]
[SourceQuality "1"]
[TimeControl "180+1"]

1. e4 {[%emt 0:00:01]} e5 {[%emt 0:00:01]} 2. Nf3 {[%emt 0:00:00]} Nc6 {[%emt 0:00:00]} 3. Bc4 {[%emt 0:00:01]} Bc5 {[%emt 0:00:00]} 4. c3 {[%emt 0:00:00]} Nf6 {[%emt 0:00:01]} 5. d3 {[%emt 0:00:01]} d6 {[%emt 0:00:00]} 6. O-O {[%emt 0:00:02]} a5 {[%emt 0:00:01]} 7. Re1 {[%emt 0:00:01]} h6 {[%emt 0:00:00]} 8. Nbd2 {[%emt 0:00:01]} O-O {[%emt 0:00:01]} 9. Nf1 {[%emt 0:00:00]} Be6 {[%emt 0:00:01]} 10. Bb5 {[%emt 0:00:01]} Bb6 {[%emt 0:00:01]} 11. h3 {[%emt 0:00:03]} Ne7 {[%emt 0:00:02]} 12. d4 {[%emt 0:00:02]} exd4 {[%emt 0:00:00]} 13. cxd4 {[%emt 0:00:02]} d5 {[%emt 0:00:01]} 14. e5 {[%emt 0:00:03]} Ne4 {[%emt 0:00:01]} 15. Ng3 {[%emt 0:00:03]} c5 {[%emt 0:00:01]} 16. Be3 {[%emt 0:00:22]} Nxg3 {[%emt 0:00:10]} 17. dxc5 {[%emt 0:00:01]} Ngf5 {[%emt 0:00:06]} 18. cxb6 {[%emt 0:00:02]} Nxe3 {[%emt 0:00:00]} 19. Rxe3 {[%emt 0:00:02]} Qxb6 {[%emt 0:00:00]} 20. Rb3 {[%emt 0:00:03]} Qa7 {[%emt 0:00:29]} 21. Nd4 {[%emt 0:00:03]} Nf5 {[%emt 0:00:01]} 22. Nxf5 {[%emt 0:00:22]} Bxf5 {[%emt 0:00:00]} 23. Rg3 {[%emt 0:00:16]} Qb6 {[%emt 0:00:09]} 24. Qxd5 {[%emt 0:00:14]} Be6 {[%emt 0:00:01]} 25. Qd3 {[%emt 0:00:03]} Rfd8 {[%emt 0:00:01]} 26. Qe2 {[%emt 0:00:01]} Rac8 {[%emt 0:00:02]} 27. Bd3 {[%emt 0:00:03]} Rd4 {[%emt 0:00:12]} 28. Kh2 {[%emt 0:00:08]} Rf4 {[%emt 0:00:06]} 29. Rf1 {[%emt 0:00:04]} Bxa2 {[%emt 0:00:05]} 30. b3 {[%emt 0:00:17]} Bxb3 {[%emt 0:00:04]} 31. Rb1 {[%emt 0:00:01]} a4 {[%emt 0:00:01]} 32. Re3 {[%emt 0:00:08]} Qc7 {[%emt 0:00:13]} 33. g3 {[%emt 0:00:01]} Rd4 {[%emt 0:00:01]} 34. Bf5 {[%emt 0:00:02]} Rcd8 {[%emt 0:00:02]} 35. e6 {[%emt 0:00:06]} Rd2 {[%emt 0:00:10]} 36. Qxd2 {[%emt 0:00:06]} Rxd2 {[%emt 0:00:01]} 37. e7 {[%emt 0:00:00]} Rxf2+ {[%emt 0:00:01]} 38. Kg1 {[%emt 0:00:02]} Rxf5 {[%emt 0:00:00]} 39. e8=Q+ {[%emt 0:00:00]} Kh7 {[%emt 0:00:01]} 40. Qe4 {[%emt 0:00:12]} g6 {[%emt 0:00:00]} 41. Qd4 {[%emt 0:00:06]} Qc2 {[%emt 0:00:08]} 42. Rb2 {[%emt 0:00:09]} Qc1+ {[%emt 0:00:04]} 43. Kh2 {[%emt 0:00:02]} Bd5 {[%emt 0:00:01]} 0-1

[Event "Speed Chess Championship 2020"]
[Site "Online"]
[Date "2020.11.19"]
[Round "2.19"]
[White "So, Wesley"]
[Black "Duda, Jan-Krzysztof"]
[Result "1-0"]
[ECO "D46"]
[WhiteElo "2816"]
[BlackElo "2743"]
[Annotator "ChessBase"]
[PlyCount "69"]
[EventDate "2020.10.31"]
[EventType "k.o."]
[EventCountry "NET"]
[SourceTitle "playchess.com"]
[Source "ChessBase"]
[SourceQuality "1"]
[TimeControl "60+1"]

1. d4 {[%emt 0:00:01]} Nf6 {[%emt 0:00:01]} 2. c4 {[%emt 0:00:00]} c6 {[%emt 0:00:02]} 3. Nf3 {[%emt 0:00:03]} d5 {[%emt 0:00:00]} 4. e3 {[%emt 0:00:01]} e6 {[%emt 0:00:01]} 5. Nc3 {[%emt 0:00:02]} Nbd7 {[%emt 0:00:01]} 6. Qc2 {[%emt 0:00:01]} Bd6 {[%emt 0:00:00]} 7. Bd3 {[%emt 0:00:01]} O-O {[%emt 0:00:02]} 8. O-O {[%emt 0:00:00]} dxc4 {[%emt 0:00:00]} 9. Bxc4 {[%emt 0:00:01]} b5 {[%emt 0:00:01]} 10. Be2 {[%emt 0:00:01]} Bb7 {[%emt 0:00:02]} 11. e4 {[%emt 0:00:01]} e5 {[%emt 0:00:00]} 12. dxe5 {[%emt 0:00:01]} Nxe5 {[%emt 0:00:01]} 13. Nd4 {[%emt 0:00:00]} Neg4 {[%emt 0:00:02]} 14. g3 {[%emt 0:00:01]} Be5 {[%emt 0:00:01]} 15. Nf5 {[%emt 0:00:04]} Qb6 {[%emt 0:00:12]} 16. h3 {[%emt 0:00:03]} Nh6 {[%emt 0:00:14]} 17. Be3 {[%emt 0:00:03]} Qc7 {[%emt 0:00:03]} 18. Nxh6+ {[%emt 0:00:08]} gxh6 {[%emt 0:00:00]} 19. Bxh6 {[%emt 0:00:04]} Rfe8 {[%emt 0:00:06]} 20. Kh2 {[%emt 0:00:02]} c5 {[%emt 0:00:03]} 21. Nxb5 {[%emt 0:00:02]} Qe7 {[%emt 0:00:06]} 22. Bf3 {[%emt 0:00:03]} Nxe4 {[%emt 0:00:03]} 23. Rae1 {[%emt 0:00:01]} f5 {[%emt 0:00:02]} 24. Qc4+ {[%emt 0:00:04]} Kh8 {[%emt 0:00:02]} 25. Nc3 {[%emt 0:00:03]} Qd6 {[%emt 0:00:02]} 26. Bxe4 {[%emt 0:00:07]} fxe4 {[%emt 0:00:01]} 27. Be3 {[%emt 0:00:01]} Qh6 {[%emt 0:00:05]} 28. Qxc5 {[%emt 0:00:05]} Qh5 {[%emt 0:00:05]} 29. Bd4 {[%emt 0:00:02]} Rac8 {[%emt 0:00:01]} 30. Bxe5+ {[%emt 0:00:01]} Rxe5 {[%emt 0:00:00]} 31. Qxa7 {[%emt 0:00:01]} Re7 {[%emt 0:00:04]} 32. Qd4+ {[%emt 0:00:01]} Rg7 {[%emt 0:00:01]} 33. Nxe4 {[%emt 0:00:01]} Rf8 {[%emt 0:00:00]} 34. Nc5 {[%emt 0:00:04]} Bc8 {[%emt 0:00:04]} 35. Ne6 {[%emt 0:00:01]} 1-0

[Event "Speed Chess Championship 2020"]
[Site "Online"]
[Date "2020.12.04"]
[Round "2.19"]
[White "Nakamura, Hikaru"]
[Black "Fedoseev, Vladimir"]
[Result "1/2-1/2"]
[ECO "A04"]
[WhiteElo "2736"]
[BlackElo "2676"]
[Annotator "ChessBase"]
[PlyCount "142"]
[EventDate "2020.10.31"]
[EventType "k.o."]
[EventCountry "NET"]
[SourceTitle "playchess.com"]
[Source "ChessBase"]
[SourceQuality "1"]
[TimeControl "60+1"]

1. b3 {[%emt 0:00:01]} c5 {[%emt 0:00:01]} 2. Bb2 {[%emt 0:00:00]} d6 {[%emt 0:00:00]} 3. Nf3 {[%emt 0:00:00]} e5 {[%emt 0:00:01]} 4. e3 {[%emt 0:00:00]} Nf6 {[%emt 0:00:02]} 5. d4 {[%emt 0:00:00]} cxd4 {[%emt 0:00:00]} 6. exd4 {[%emt 0:00:01]} e4 {[%emt 0:00:01]} 7. Nfd2 {[%emt 0:00:00]} d5 {[%emt 0:00:00]} 8. c4 {[%emt 0:00:00]} Bb4 {[%emt 0:00:03]} 9. Nc3 {[%emt 0:00:02]} O-O {[%emt 0:00:01]} 10. Be2 {[%emt 0:00:00]} Re8 {[%emt 0:00:02]} 11. O-O {[%emt 0:00:03]} Nc6 {[%emt 0:00:01]} 12. Nxd5 {[%emt 0:00:05]} Nxd5 {[%emt 0:00:03]} 13. cxd5 {[%emt 0:00:00]} Qxd5 {[%emt 0:00:06]} 14. Nc4 {[%emt 0:00:00]} Qg5 {[%emt 0:00:07]} 15. Bc1 {[%emt 0:00:02]} Qg6 {[%emt 0:00:03]} 16. Bh5 {[%emt 0:00:06]} Qf6 {[%emt 0:00:01]} 17. Bb2 {[%emt 0:00:04]} Qg5 {[%emt 0:00:05]} 18. Kh1 {[%emt 0:00:04]} Be6 {[%emt 0:00:04]} 19. Bc1 {[%emt 0:00:05]} Qd5 {[%emt 0:00:02]} 20. Bb2 {[%emt 0:00:01]} Rad8 {[%emt 0:00:02]} 21. Ne3 {[%emt 0:00:03]} Qg5 {[%emt 0:00:00]} 22. f4 {[%emt 0:00:05]} exf3 {[%emt 0:00:10]} 23. Qxf3 {[%emt 0:00:01]} g6 {[%emt 0:00:04]} 24. Bg4 {[%emt 0:00:00]} f5 {[%emt 0:00:01]} 25. d5 {[%emt 0:00:08]} fxg4 {[%emt 0:00:02]} 26. Nxg4 {[%emt 0:00:00]} Qxg4 {[%emt 0:00:17]} 27. Qf6 {[%emt 0:00:01]} Qxg2+ {[%emt 0:00:00]} 28. Kxg2 {[%emt 0:00:01]} Bxd5+ {[%emt 0:00:01]} 29. Rf3 {[%emt 0:00:11]} Re2+ {[%emt 0:00:01]} 30. Kg3 {[%emt 0:00:09]} Bd6+ {[%emt 0:00:01]} 31. Rf4 {[%emt 0:00:01]} Rxb2 {[%emt 0:00:01]} 32. Qxb2 {[%emt 0:00:01]} g5 {[%emt 0:00:01]} 33. Raf1 {[%emt 0:00:03]} gxf4+ {[%emt 0:00:02]} 34. Kh3 {[%emt 0:00:01]} Be5 {[%emt 0:00:00]} 35. Rg1+ {[%emt 0:00:01]} Kf7 {[%emt 0:00:01]} 36. Qe2 {[%emt 0:00:00]} Be6+ {[%emt 0:00:01]} 37. Kh4 {[%emt 0:00:01]} Bf6+ {[%emt 0:00:01]} 38. Kh5 {[%emt 0:00:00]} Rd5+ {[%emt 0:00:01]} 39. Kh6 {[%emt 0:00:00]} Ne5 {[%emt 0:00:02]} 40. Qe4 {[%emt 0:00:05]} Ng6 {[%emt 0:00:02]} 41. Rxg6 {[%emt 0:00:00]} hxg6 {[%emt 0:00:00]} 42. Qxg6+ {[%emt 0:00:01]} Ke7 {[%emt 0:00:01]} 43. Qe4 {[%emt 0:00:02]} Bg5+ {[%emt 0:00:04]} 44. Kg6 {[%emt 0:00:01]} Kd7 {[%emt 0:00:02]} 45. Qa4+ {[%emt 0:00:03]} Ke7 {[%emt 0:00:01]} 46. Qb4+ {[%emt 0:00:02]} Ke8 {[%emt 0:00:01]} 47. Qxb7 {[%emt 0:00:01]} Be7 {[%emt 0:00:02]} 48. Qb8+ {[%emt 0:00:02]} Kd7 {[%emt 0:00:00]} 49. Qxf4 {[%emt 0:00:01]} a5 {[%emt 0:00:01]} 50. h4 {[%emt 0:00:01]} Bd6 {[%emt 0:00:02]} 51. Qa4+ {[%emt 0:00:01]} Ke7 {[%emt 0:00:00]} 52. Qe4 {[%emt 0:00:04]} Be5 {[%emt 0:00:02]} 53. h5 {[%emt 0:00:01]} Bf6 {[%emt 0:00:00]} 54. Qe3 {[%emt 0:00:02]} Be5 {[%emt 0:00:02]} 55. Qg5+ {[%emt 0:00:01]} Kd7 {[%emt 0:00:01]} 56. h6 {[%emt 0:00:01]} Bd4 {[%emt 0:00:00]} 57. Qf4 {[%emt 0:00:01]} Bf5+ {[%emt 0:00:00]} 58. Qxf5+ {[%emt 0:00:02]} Rxf5 {[%emt 0:00:01]} 59. Kxf5 {[%emt 0:00:00]} Kd6 {[%emt 0:00:00]} 60. Ke4 {[%emt 0:00:01]} Kc5 {[%emt 0:00:01]} 61. a3 {[%emt 0:00:01]} Bb2 {[%emt 0:00:01]} 62. h7 {[%emt 0:00:01]} Kb5 {[%emt 0:00:01]} 63. Kd5 {[%emt 0:00:01]} Bc3 {[%emt 0:00:01]} 64. Ke4 {[%emt 0:00:01]} Kc5 {[%emt 0:00:01]} 65. Kd3 {[%emt 0:00:01]} Bb2 {[%emt 0:00:00]} 66. b4+ {[%emt 0:00:01]} axb4 {[%emt 0:00:01]} 67. axb4+ {[%emt 0:00:00]} Kxb4 {[%emt 0:00:00]} 68. Ke4 {[%emt 0:00:00]} Kc5 {[%emt 0:00:01]} 69. Kf5 {[%emt 0:00:01]} Kd6 {[%emt 0:00:00]} 70. Kg6 {[%emt 0:00:00]} Ke7 {[%emt 0:00:01]} 71. h8=Q {[%emt 0:00:00]} Bxh8 {[%emt 0:00:01]} 1/2-1/2

[Event "Speed Chess Championship 2020"]
[Site "Online"]
[Date "2020.11.19"]
[Round "2.21"]
[White "So, Wesley"]
[Black "Duda, Jan-Krzysztof"]
[Result "0-1"]
[ECO "A70"]
[WhiteElo "2816"]
[BlackElo "2743"]
[Annotator "ChessBase"]
[PlyCount "150"]
[EventDate "2020.10.31"]
[EventType "k.o."]
[EventCountry "NET"]
[SourceTitle "playchess.com"]
[Source "ChessBase"]
[SourceQuality "1"]
[TimeControl "60+1"]

1. d4 {[%emt 0:00:01]} Nf6 {[%emt 0:00:01]} 2. c4 {[%emt 0:00:00]} c5 {[%emt 0:00:00]} 3. d5 {[%emt 0:00:01]} e6 {[%emt 0:00:00]} 4. Nc3 {[%emt 0:00:01]} d6 {[%emt 0:00:01]} 5. Nf3 {[%emt 0:00:01]} g6 {[%emt 0:00:00]} 6. e4 {[%emt 0:00:03]} Bg7 {[%emt 0:00:01]} 7. h3 {[%emt 0:00:00]} O-O {[%emt 0:00:01]} 8. Bd3 {[%emt 0:00:01]} exd5 {[%emt 0:00:03]} 9. cxd5 {[%emt 0:00:00]} Na6 {[%emt 0:00:01]} 10. O-O {[%emt 0:00:01]} Nc7 {[%emt 0:00:01]} 11. Re1 {[%emt 0:00:00]} Nd7 {[%emt 0:00:02]} 12. Bf4 {[%emt 0:00:02]} Qe7 {[%emt 0:00:01]} 13. a4 {[%emt 0:00:01]} Ne5 {[%emt 0:00:01]} 14. Nxe5 {[%emt 0:00:04]} Bxe5 {[%emt 0:00:00]} 15. Bxe5 {[%emt 0:00:00]} Qxe5 {[%emt 0:00:01]} 16. Qd2 {[%emt 0:00:01]} b6 {[%emt 0:00:03]} 17. Rad1 {[%emt 0:00:03]} Bd7 {[%emt 0:00:04]} 18. f4 {[%emt 0:00:02]} Qd4+ {[%emt 0:00:01]} 19. Kh2 {[%emt 0:00:03]} Bxa4 {[%emt 0:00:04]} 20. Nxa4 {[%emt 0:00:01]} Qxa4 {[%emt 0:00:00]} 21. e5 {[%emt 0:00:00]} dxe5 {[%emt 0:00:14]} 22. fxe5 {[%emt 0:00:00]} Nxd5 {[%emt 0:00:01]} 23. Be4 {[%emt 0:00:02]} Nc7 {[%emt 0:00:00]} 24. Bxa8 {[%emt 0:00:01]} Rxa8 {[%emt 0:00:01]} 25. Qd7 {[%emt 0:00:04]} Qxd7 {[%emt 0:00:08]} 26. Rxd7 {[%emt 0:00:00]} Ne6 {[%emt 0:00:02]} 27. Rf1 {[%emt 0:00:01]} Rf8 {[%emt 0:00:02]} 28. Rxa7 {[%emt 0:00:01]} b5 {[%emt 0:00:00]} 29. Rb7 {[%emt 0:00:02]} b4 {[%emt 0:00:00]} 30. h4 {[%emt 0:00:06]} h5 {[%emt 0:00:01]} 31. Rf6 {[%emt 0:00:01]} Nd4 {[%emt 0:00:01]} 32. Rd6 {[%emt 0:00:03]} Ne6 {[%emt 0:00:07]} 33. Rdd7 {[%emt 0:00:04]} Nd4 {[%emt 0:00:06]} 34. Kg3 {[%emt 0:00:02]} Ne6 {[%emt 0:00:02]} 35. Kf3 {[%emt 0:00:03]} Kg7 {[%emt 0:00:01]} 36. Rd6 {[%emt 0:00:04]} Nd4+ {[%emt 0:00:01]} 37. Ke4 {[%emt 0:00:01]} Kg8 {[%emt 0:00:08]} 38. Rd5 {[%emt 0:00:03]} Ne6 {[%emt 0:00:01]} 39. Rdd7 {[%emt 0:00:02]} c4 {[%emt 0:00:01]} 40. Rd5 {[%emt 0:00:09]} c3 {[%emt 0:00:01]} 41. Rxb4 {[%emt 0:00:03]} cxb2 {[%emt 0:00:03]} 42. Rxb2 {[%emt 0:00:00]} Ra8 {[%emt 0:00:01]} 43. Kf3 {[%emt 0:00:06]} Ra4 {[%emt 0:00:02]} 44. Kg3 {[%emt 0:00:01]} Rg4+ {[%emt 0:00:02]} 45. Kf3 {[%emt 0:00:01]} Rxh4 {[%emt 0:00:00]} 46. Re2 {[%emt 0:00:01]} Rf4+ {[%emt 0:00:03]} 47. Kg3 {[%emt 0:00:02]} Rg4+ {[%emt 0:00:00]} 48. Kf3 {[%emt 0:00:01]} Kg7 {[%emt 0:00:01]} 49. Ra5 {[%emt 0:00:02]} Nd4+ {[%emt 0:00:01]} 50. Ke3 {[%emt 0:00:10]} Nxe2 {[%emt 0:00:00]} 51. Kxe2 {[%emt 0:00:01]} Rxg2+ {[%emt 0:00:01]} 52. Kf3 {[%emt 0:00:00]} Rg5 {[%emt 0:00:00]} 53. Kf4 {[%emt 0:00:02]} Rf5+ {[%emt 0:00:01]} 54. Ke4 {[%emt 0:00:00]} h4 {[%emt 0:00:01]} 55. Ra7 {[%emt 0:00:01]} h3 {[%emt 0:00:02]} 56. Ra1 {[%emt 0:00:08]} h2 {[%emt 0:00:02]} 57. Rh1 {[%emt 0:00:00]} Rh5 {[%emt 0:00:01]} 58. Kf4 {[%emt 0:00:00]} Kf8 {[%emt 0:00:00]} 59. Kg4 {[%emt 0:00:01]} Ke7 {[%emt 0:00:01]} 60. Kg3 {[%emt 0:00:00]} Ke6 {[%emt 0:00:00]} 61. Kf4 {[%emt 0:00:01]} Rh8 {[%emt 0:00:05]} 62. Ke4 {[%emt 0:00:01]} Rh4+ {[%emt 0:00:01]} 63. Kf3 {[%emt 0:00:00]} Kxe5 {[%emt 0:00:00]} 64. Kg3 {[%emt 0:00:00]} g5 {[%emt 0:00:01]} 65. Kg2 {[%emt 0:00:01]} Kf5 {[%emt 0:00:00]} 66. Rf1+ {[%emt 0:00:01]} Rf4 {[%emt 0:00:01]} 67. Kh1 {[%emt 0:00:00]} Rxf1+ {[%emt 0:00:01]} 68. Kxh2 {[%emt 0:00:01]} Rf4 {[%emt 0:00:01]} 69. Kg3 {[%emt 0:00:01]} Ke4 {[%emt 0:00:01]} 70. Kg2 {[%emt 0:00:00]} f5 {[%emt 0:00:00]} 71. Kg3 {[%emt 0:00:01]} Ke3 {[%emt 0:00:00]} 72. Kg2 {[%emt 0:00:00]} Ke2 {[%emt 0:00:00]} 73. Kg3 {[%emt 0:00:01]} Rg4+ {[%emt 0:00:00]} 74. Kh3 {[%emt 0:00:04]} Kf2 {[%emt 0:00:00]} 75. Kh2 {[%emt 0:00:07]} Rh4# {[%emt 0:00:00]} 0-1

[Event "Speed Chess Championship 2020"]
[Site "Online"]
[Date "2020.12.04"]
[Round "2.22"]
[White "Fedoseev, Vladimir"]
[Black "Nakamura, Hikaru"]
[Result "0-1"]
[ECO "A41"]
[WhiteElo "2676"]
[BlackElo "2736"]
[Annotator "ChessBase"]
[PlyCount "74"]
[EventDate "2020.10.31"]
[EventType "k.o."]
[EventCountry "NET"]
[SourceTitle "playchess.com"]
[Source "ChessBase"]
[SourceQuality "1"]
[TimeControl "60+1"]

1. Nf3 {[%emt 0:00:01]} g6 {[%emt 0:00:01]} 2. g3 {[%emt 0:00:00]} Bg7 {[%emt 0:00:00]} 3. d4 {[%emt 0:00:00]} d6 {[%emt 0:00:00]} 4. Bg2 {[%emt 0:00:00]} Nc6 {[%emt 0:00:00]} 5. O-O {[%emt 0:00:01]} Bd7 {[%emt 0:00:00]} 6. c4 {[%emt 0:00:00]} Qc8 {[%emt 0:00:01]} 7. Nc3 {[%emt 0:00:01]} Bh3 {[%emt 0:00:00]} 8. e3 {[%emt 0:00:01]} h5 {[%emt 0:00:01]} 9. Bxh3 {[%emt 0:00:01]} Qxh3 {[%emt 0:00:00]} 10. Ng5 {[%emt 0:00:01]} Qd7 {[%emt 0:00:01]} 11. Qf3 {[%emt 0:00:02]} e5 {[%emt 0:00:02]} 12. d5 {[%emt 0:00:01]} Nd8 {[%emt 0:00:01]} 13. h4 {[%emt 0:00:02]} f6 {[%emt 0:00:00]} 14. Nge4 {[%emt 0:00:01]} Nf7 {[%emt 0:00:00]} 15. c5 {[%emt 0:00:06]} f5 {[%emt 0:00:01]} 16. c6 {[%emt 0:00:00]} bxc6 {[%emt 0:00:01]} 17. dxc6 {[%emt 0:00:01]} Qe6 {[%emt 0:00:01]} 18. Ng5 {[%emt 0:00:03]} Nxg5 {[%emt 0:00:01]} 19. hxg5 {[%emt 0:00:00]} e4 {[%emt 0:00:00]} 20. Qd1 {[%emt 0:00:00]} Ne7 {[%emt 0:00:00]} 21. Ne2 {[%emt 0:00:01]} Be5 {[%emt 0:00:04]} 22. Qa4 {[%emt 0:00:03]} h4 {[%emt 0:00:02]} 23. Bd2 {[%emt 0:00:01]} hxg3 {[%emt 0:00:02]} 24. fxg3 {[%emt 0:00:00]} f4 {[%emt 0:00:00]} 25. Nxf4 {[%emt 0:00:03]} Bxf4 {[%emt 0:00:06]} 26. Rxf4 {[%emt 0:00:01]} Qh3 {[%emt 0:00:00]} 27. Qxe4 {[%emt 0:00:21]} Qh2+ {[%emt 0:00:06]} 28. Kf1 {[%emt 0:00:00]} Qh1+ {[%emt 0:00:11]} 29. Ke2 {[%emt 0:00:02]} Qxa1 {[%emt 0:00:03]} 30. Qe6 {[%emt 0:00:06]} Rh2+ {[%emt 0:00:02]} 31. Kd3 {[%emt 0:00:03]} Rxd2+ {[%emt 0:00:02]} 32. Kxd2 {[%emt 0:00:02]} Qxb2+ {[%emt 0:00:00]} 33. Kd3 {[%emt 0:00:01]} Qb5+ {[%emt 0:00:02]} 34. Kd2 {[%emt 0:00:01]} Qd5+ {[%emt 0:00:02]} 35. Qxd5 {[%emt 0:00:03]} Nxd5 {[%emt 0:00:00]} 36. Rh4 {[%emt 0:00:00]} Kf7 {[%emt 0:00:02]} 37. Rh7+ {[%emt 0:00:03]} Ke6 {[%emt 0:00:00]} 0-1